bitfinex/quotes_SOLUSD_20250317
["timestamp","ask_amount","ask_price","bid_price","bid_amount"]
[1742223425481,18.06408662,126.69,126.66,95.9149]
[1742223426159,18.06408662,126.7,126.66,95.9149]
[1742223426389,18.06408662,126.7,126.66,115.6527]
[1742223426563,18.06408662,126.72,126.66,133.71678662]
[1742223426895,18.06408662,126.7,126.66,95.9149]
[1742223427589,18.06408662,126.71,126.66,95.9149]
[1742223428397,18.06408662,126.7,126.66,95.9149]
[1742223429475,18.06408662,126.71,126.66,95.9149]
[1742223429669,18.06408662,126.71,126.66,113.97898662]
[1742223429873,18.06408662,126.71,126.66,115.6527]
[1742223430181,18.06408662,126.69,126.66,88.02]
[1742223430586,18.06408662,126.69,126.66,95.9149]
[1742223430778,18.06408662,126.69,126.66,88.02]
[1742223431083,18.06408662,126.68,126.66,88.02]
[1742223431381,18.06408662,126.67,126.65,2.8447537]
[1742223431568,18.06408662,126.69,126.65,2.8447537]
[1742223432467,18.06408662,126.68,126.65,10.7402537]
[1742223432984,7.8929,126.7,126.65,10.7402537]
[1742223433389,18.06408662,126.69,126.65,10.7402537]
[1742223433561,7.8929,126.7,126.65,10.7402537]
[1742223433766,18.06408662,126.69,126.65,10.7402537]
[1742223434261,7.8922,126.71,126.65,28.80434032]
[1742223434466,18.06408662,126.71,126.65,109.60434032]
[1742223434669,18.06408662,126.69,126.65,91.5402537]
[1742223434987,18.06408662,126.68,126.65,91.5404537]
[1742223435373,18.06408662,126.69,126.65,91.5404537]
[1742223436675,18.06408662,126.7,126.65,91.5404537]
[1742223436982,15.154,126.73,126.65,129.34394032]
[1742223437175,18.06408662,126.71,126.65,129.34394032]
[1742223437791,18.06408662,126.7,126.65,129.34394032]
[1742223438984,18.06408662,126.7,126.65,109.60454032]
[1742223439177,18.06408662,126.69,126.65,91.5404537]
[1742223439795,18.06408662,126.7,126.65,91.5404537]
[1742223440393,18.06408662,126.72,126.66,18.06408662]
[1742223440593,18.06408662,126.71,126.67,7.8945]
[1742223440893,18.06408662,126.71,126.68,7.2]
[1742223442596,18.06408662,126.72,126.68,7.2]
[1742223442795,18.06408662,126.72,126.69,7.8932]
[1742223443900,18.06408662,126.71,126.68,7.2]
[1742223444399,18.06408662,126.71,126.68,95.8935]
[1742223444601,18.12708662,126.73,126.68,95.8935]
[1742223444777,0.063,126.73,126.68,95.8935]
[1742223444985,18.06408662,126.72,126.68,95.8935]
[1742223447798,25.95558662,126.72,126.68,95.8935]
[1742223447978,18.06408662,126.72,126.68,95.8935]
[1742223449183,0.063,126.73,126.69,19.7217805]
[1742223449386,0.063,126.73,126.71,11.5704805]
[1742223449581,0.063,126.73,126.72,7.18]
[1742223449793,0.063,126.73,126.72,15.0714]
[1742223450097,0.063,126.73,126.72,107.4418805]
[1742223451079,0.063,126.73,126.72,113.93063295]
[1742223451495,0.063,126.79,126.73,0.56864628]
[1742223451692,0.063,126.79,126.75,18.05923295]
[1742223451891,0.063,126.79,126.76,15.0489]
[1742223452190,0.063,126.79,126.77,18.05923295]
[1742223452581,0.063,126.79,126.78,6.2691]
[1742223453499,0.063,126.79,126.76,87.96]
[1742223453683,0.063,126.79,126.77,18.05923295]
[1742223453883,0.063,126.79,126.78,19.55973295]
[1742223454413,0.063,126.79,126.78,108.24733295]
[1742223454696,0.063,126.79,126.78,108.81597923]
[1742223455596,0.063,126.79,126.78,82.3005]
[1742223455813,0.063,126.79,126.78,108.24733295]
[1742223456609,0.063,126.79,126.78,82.3005]
[1742223456806,0.063,126.79,126.78,80.8]
[1742223457102,18.12223295,126.79,126.75,80.8]
[1742223457298,18.05923295,126.77,126.75,80.8]
[1742223457694,18.05923295,126.78,126.75,80.8]
[1742223457997,25.94743295,126.78,126.75,80.8]
[1742223458504,18.05923295,126.76,126.75,80.8]
[1742223459000,18.05923295,126.76,126.72,0.03]
[1742223459193,18.05923295,126.73,126.72,0.03]
[1742223460107,25.94993295,126.73,126.72,0.03]
[1742223461905,25.94993295,126.73,126.67,6.5493]
[1742223462107,25.95313295,126.68,126.65,2.8447537]
[1742223462400,18.05923295,126.67,126.65,2.8447537]
[1742223462601,18.05923295,126.69,126.65,2.8447537]
[1742223463580,18.05923295,126.69,126.65,10.7404537]
[1742223463800,18.05923295,126.7,126.66,7.22]
[1742223463995,18.05923295,126.71,126.66,88.02]
[1742223464399,18.05923295,126.71,126.66,106.07923295]
[1742223464582,7.22,126.73,126.67,18.05923295]
[1742223464789,18.05923295,126.72,126.67,98.85923295]
[1742223465397,22.9029,126.76,126.67,98.85923295]
[1742223465599,18.05923295,126.73,126.67,98.85923295]
[1742223465834,18.05923295,126.73,126.68,25.95313295]
[1742223466314,18.05923295,126.73,126.68,7.8939]
[1742223466997,18.05923295,126.74,126.69,14.0687]
[1742223467311,18.05923295,126.74,126.7,7.2]
[1742223467491,18.05923295,126.74,126.7,88.0]
[1742223467694,18.05923295,126.77,126.71,18.05923295]
[1742223467994,18.05923295,126.77,126.72,18.05923295]
[1742223468199,18.05923295,126.77,126.72,98.85923295]
[1742223468407,18.05923295,126.77,126.72,80.8]
[1742223469010,18.05923295,126.76,126.72,88.691]
[1742223469396,18.05923295,126.74,126.72,80.8]
[1742223469799,18.05923295,126.74,126.72,88.6913]
[1742223470117,18.05923295,126.75,126.72,88.6913]
[1742223470315,18.05923295,126.76,126.72,88.6913]
[1742223470619,0.063,126.74,126.72,88.6913]
[1742223471197,18.12223295,126.74,126.72,80.8]
[1742223471418,18.05923295,126.73,126.72,80.8]
[1742223472916,18.12223295,126.74,126.72,88.6914]
[1742223473224,18.12223295,126.74,126.72,80.8]
[1742223473402,18.12223295,126.74,126.72,88.6913]
[1742223473714,0.063,126.74,126.72,88.6913]
[1742223474119,18.12223295,126.74,126.72,80.8]
[1742223474314,18.05923295,126.73,126.72,80.8]
[1742223475423,25.94993295,126.73,126.72,80.8]
[1742223476403,25.94993295,126.73,126.68,88.01]
[1742223476722,18.05923295,126.7,126.68,80.83]
[1742223477815,18.05923295,126.71,126.68,80.83]
[1742223478323,18.05923295,126.7,126.68,80.83]
[1742223478924,18.05923295,126.71,126.68,80.83]
[1742223479330,18.05923295,126.71,126.68,88.7238]
[1742223479517,18.05923295,126.72,126.68,88.7238]
[1742223480216,18.05923295,126.71,126.68,88.7238]
[1742223480416,18.05923295,126.71,126.68,80.83]
[1742223480619,18.05923295,126.7,126.68,80.83]
[1742223480813,18.05923295,126.72,126.68,80.83]
[1742223481020,18.05923295,126.71,126.68,80.83]
[1742223481415,18.05923295,126.72,126.68,80.83]
[1742223481812,18.05923295,126.71,126.68,80.83]
[1742223482027,18.05923295,126.73,126.68,88.7236]
[1742223482220,18.05923295,126.72,126.68,88.7236]
[1742223482425,18.05923295,126.71,126.68,80.83]
[1742223483226,21.6619,126.74,126.68,88.7238]
[1742223483506,18.05923295,126.73,126.68,88.7238]
[1742223484112,18.12223295,126.74,126.69,18.05923295]
[1742223484335,18.12223295,126.74,126.68,106.78303295]
[1742223484535,18.12223295,126.74,126.69,18.05923295]
[1742223484829,0.063,126.74,126.7,33.11183295]
[1742223485015,0.063,126.74,126.7,115.48573295]
[1742223485424,0.063,126.74,126.7,97.4265]
[1742223485627,18.12223295,126.74,126.7,97.4265]
[1742223486941,0.063,126.74,126.7,97.4265]
[1742223488141,0.063,126.74,126.7,115.48573295]
[1742223488838,0.063,126.74,126.7,97.4265]
[1742223489318,18.12223295,126.74,126.7,89.5339]
[1742223489839,18.12223295,126.74,126.7,97.4265]
[1742223490035,18.12223295,126.74,126.7,89.5339]
[1742223490241,18.12223295,126.74,126.7,97.4265]
[1742223490538,18.05923295,126.71,126.7,80.8]
[1742223491122,25.95123295,126.71,126.7,80.8]
[1742223491940,18.05923295,126.71,126.7,80.8]
[1742223492827,25.95123295,126.71,126.7,80.8]
[1742223494618,25.95123295,126.71,126.68,0.03]
[1742223494819,18.05923295,126.7,126.68,0.03]
[1742223495044,25.95123295,126.71,126.68,0.03]
[1742223495238,18.05923295,126.71,126.68,0.03]
[1742223495865,7.8907,126.73,126.68,0.03]
[1742223496044,18.05923295,126.72,126.68,0.03]
[1742223496345,18.05923295,126.71,126.68,0.03]
[1742223498546,25.95123295,126.71,126.68,0.03]
[1742223498732,18.05923295,126.69,126.68,0.03]
[1742223499535,18.05923295,126.7,126.68,0.03]
[1742223500541,7.892,126.71,126.68,0.03]
[1742223500542,18.05923295,126.69,126.68,0.03]
[1742223501250,18.05923295,126.7,126.68,0.03]
[1742223501627,18.05923295,126.69,126.68,0.03]
[1742223503426,25.95243295,126.69,126.68,0.03]
[1742223504346,44.60208181,126.69,126.68,0.03]
[1742223504837,52.46708181,126.69,126.68,0.03]
[1742223505529,18.64964886,126.68,126.65,2.8147537]
[1742223505860,18.05923295,126.66,126.65,2.8147537]
[1742223506445,25.95433295,126.66,126.65,2.8147537]
[1742223507832,18.05923295,126.66,126.65,2.8147537]
[1742223508338,18.05923295,126.67,126.65,2.8147537]
[1742223508543,18.05923295,126.68,126.65,2.8147537]
[1742223508743,18.05923295,126.69,126.65,10.7104537]
[1742223508943,18.05923295,126.68,126.65,10.7104537]
[1742223509333,18.05923295,126.69,126.65,10.7104537]
[1742223510149,4.05350632,126.72,126.66,7.1]
[1742223510343,18.05923295,126.7,126.66,7.1]
[1742223510531,11.94550632,126.72,126.66,14.9947]
[1742223510736,18.05923295,126.71,126.66,33.05393295]
[1742223510944,18.12223295,126.72,126.67,18.05923295]
[1742223511150,18.05923295,126.71,126.66,52.79173295]
[1742223511453,18.05923295,126.71,126.66,33.05393295]
[1742223511635,18.05923295,126.71,126.66,7.1]
[1742223511835,18.05923295,126.68,126.66,7.1]
[1742223512046,18.05923295,126.68,126.66,14.9949]
[1742223512245,18.05923295,126.69,126.66,14.9949]
[1742223513559,18.05923295,126.71,126.66,14.9949]
[1742223513760,18.05923295,126.71,126.66,95.7949]
[1742223514138,18.05923295,126.71,126.66,113.85413295]
[1742223514352,18.12223295,126.72,126.67,18.05923295]
[1742223514547,0.063,126.72,126.69,18.05923295]
[1742223514758,0.063,126.72,126.7,39.07213295]
[1742223515060,0.063,126.72,126.7,21.0129]
[1742223515744,0.063,126.72,126.7,39.07213295]
[1742223516158,0.063,126.72,126.7,119.87213295]
[1742223516351,0.063,126.72,126.7,93.9203]
[1742223516554,18.12223295,126.72,126.7,93.9203]
[1742223516751,18.05923295,126.71,126.69,7.1]
[1742223516951,18.05923295,126.7,126.69,7.1]
[1742223517362,18.05923295,126.7,126.68,0.03]
[1742223517553,18.05923295,126.69,126.68,0.03]
[1742223518661,25.95243295,126.69,126.68,0.03]
[1742223519356,36.84625875,126.69,126.68,0.03]
[1742223523347,28.95305875,126.66,126.65,2.8147537]
[1742223524568,36.84815875,126.66,126.65,2.8147537]
[1742223526262,28.95305875,126.66,126.65,2.8147537]
[1742223526562,36.84815875,126.66,126.65,2.8147537]
[1742223528760,75.23560761,126.66,126.62,50.0]
[1742223528969,57.9061175,126.63,126.62,50.0]
[1742223530179,65.8031175,126.63,126.62,50.0]
[1742223531064,28.95305875,126.63,126.62,50.0]
[1742223531679,28.95305875,126.65,126.62,50.0]
[1742223532070,28.95305875,126.64,126.62,50.0]
[1742223532671,28.95305875,126.63,126.62,50.0]
[1742223533874,7.8953,126.66,126.62,50.0]
[1742223534189,28.95305875,126.63,126.62,50.0]
[1742223537493,36.85005875,126.63,126.62,50.0]
[1742223539193,26.00683466,126.63,126.62,50.0]
[1742223540497,44.11666932,126.63,126.62,50.0]
[1742223541500,82.50881818,126.63,126.57,6.0046]
[1742223541795,18.10983466,126.59,126.57,6.0046]
[1742223542209,18.10983466,126.58,126.56,82.432]
[1742223543207,18.10983466,126.59,126.56,82.432]
[1742223543492,18.10983466,126.59,126.56,90.3333]
[1742223544000,26.54724886,126.62,126.56,90.3333]
[1742223544204,18.10983466,126.58,126.56,82.432]
[1742223544778,18.10983466,126.58,126.56,80.8]
[1742223545182,18.10983466,126.57,126.54,88.7025]
[1742223545503,18.10983466,126.57,126.54,95.8025]
[1742223546104,7.1,126.64,126.55,18.10983466]
[1742223546306,18.10983466,126.61,126.56,7.9013]
[1742223546504,18.10983466,126.61,126.56,88.7013]
[1742223546695,7.8976,126.63,126.56,88.7013]
[1742223546893,7.8976,126.63,126.57,18.10983466]
[1742223546894,18.10983466,126.63,126.57,18.10983466]
[1742223547198,18.10983466,126.63,126.59,6.0019]
[1742223547397,18.10983466,126.63,126.59,86.8019]
[1742223547781,18.10983466,126.64,126.59,86.8019]
[1742223548515,18.10983466,126.64,126.6,7.8988]
[1742223548995,18.10983466,126.65,126.6,126.55583466]
[1742223549388,18.10983466,126.66,126.61,18.10983466]
[1742223549697,18.10983466,126.65,126.62,7.1]
[1742223549909,18.10983466,126.66,126.62,7.1]
[1742223550085,18.10983466,126.67,126.62,7.1]
[1742223550292,0.063,126.68,126.62,106.00983466]
[1742223550479,18.17283466,126.68,126.63,7.897]
[1742223550684,18.10983466,126.67,126.63,7.897]
[1742223551308,18.17283466,126.68,126.63,7.897]
[1742223551508,18.10983466,126.67,126.63,7.897]
[1742223551799,18.10983466,126.67,126.62,133.65123466]
[1742223551984,18.17283466,126.68,126.62,133.65123466]
[1742223552182,18.10983466,126.67,126.62,95.7973]
[1742223553005,18.10983466,126.66,126.62,95.7973]
[1742223553509,18.10983466,126.65,126.62,87.9]
[1742223554211,18.10983466,126.64,126.62,80.8]
[1742223554380,18.10983466,126.64,126.6,87.9]
[1742223554585,18.10983466,126.64,126.62,0.03]
[1742223555008,7.8954,126.66,126.62,0.03]
[1742223555305,18.10983466,126.65,126.62,0.03]
[1742223557003,18.10983466,126.66,126.62,80.83]
[1742223558213,18.10983466,126.65,126.62,80.83]
[1742223559306,18.17283466,126.67,126.63,1.6247]
[1742223559511,18.17283466,126.67,126.64,7.1]
[1742223559719,18.10983466,126.66,126.64,7.1]
[1742223559888,0.063,126.67,126.64,7.1]
[1742223560083,18.17283466,126.67,126.64,7.1]
[1742223560290,18.10983466,126.66,126.64,7.1]
[1742223561202,18.10983466,126.65,126.64,7.1]
[1742223562489,18.10983466,126.65,126.62,80.83]
[1742223562810,18.10983466,126.65,126.62,95.8476]
[1742223563449,18.10983466,126.66,126.62,95.8476]
[1742223564905,26.00523466,126.66,126.62,87.95]
[1742223565102,18.10983466,126.65,126.62,87.95]
[1742223565810,26.00553466,126.65,126.62,87.95]
[1742223565999,36.21966932,126.63,126.62,0.03]
[1742223566908,0.56864628,126.62,126.53,7.6023]
[1742223567102,18.10983466,126.54,126.53,7.6023]
[1742223567411,18.10983466,126.55,126.53,7.6023]
[1742223567984,18.10983466,126.56,126.53,7.6023]
[1742223568189,18.10983466,126.55,126.53,7.6323]
[1742223569696,18.10983466,126.54,126.51,82.38452713]
[1742223569895,18.10983466,126.52,126.47,80.8]
[1742223570104,18.10983466,126.51,126.47,80.8]
[1742223570411,18.10983466,126.53,126.47,106.81663466]
[1742223570598,18.10983466,126.54,126.49,18.10983466]
[1742223570784,18.10983466,126.53,126.48,25.20983466]
[1742223571191,18.10983466,126.53,126.48,7.1]
[1742223571600,18.10983466,126.53,126.48,33.11573466]
[1742223571999,18.10983466,126.53,126.48,113.91573466]
[1742223572401,18.64964886,126.58,126.5,18.10983466]
[1742223572593,18.10983466,126.55,126.5,98.90983466]
[1742223572794,18.10983466,126.56,126.5,98.90983466]
[1742223572994,18.10983466,126.55,126.5,98.90983466]
[1742223573411,7.9004,126.58,126.5,80.8]
[1742223573412,18.10983466,126.54,126.5,80.8]
[1742223573627,18.10983466,126.54,126.5,88.7049]
[1742223573912,7.9011,126.57,126.5,88.7049]
[1742223574111,18.10983466,126.56,126.5,80.8]
[1742223574322,18.10983466,126.53,126.5,80.8]
[1742223574491,3.93283958,126.56,126.5,80.8]
[1742223574689,9.5659,126.59,126.51,7.70864628]
[1742223574910,22.09811654,126.59,126.53,18.10983466]
[1742223575114,18.10983466,126.58,126.53,18.10983466]
[1742223575295,18.10983466,126.58,126.52,6.3552]
[1742223575492,18.10983466,126.56,126.52,6.3552]
[1742223575709,18.10983466,126.56,126.52,87.1552]
[1742223575895,18.10983466,126.56,126.53,7.14]
[1742223576096,18.10983466,126.57,126.53,7.14]
[1742223576412,18.10983466,126.56,126.53,7.14]
[1742223576813,18.10983466,126.57,126.53,7.14]
[1742223577397,7.8995,126.59,126.53,7.14]
[1742223577398,18.10983466,126.55,126.53,7.14]
[1742223577721,18.10983466,126.56,126.53,7.14]
[1742223577909,18.10983466,126.56,126.52,95.0589]
[1742223578093,18.10983466,126.57,126.53,7.14]
[1742223578293,26.54784886,126.61,126.53,7.14]
[1742223578512,18.10983466,126.58,126.53,87.94]
[1742223578905,18.10983466,126.57,126.53,87.94]
[1742223581601,18.10983466,126.6,126.55,18.10983466]
[1742223582723,18.10983466,126.6,126.56,7.9013]
[1742223582926,18.10983466,126.6,126.57,7.14]
[1742223583326,18.10983466,126.59,126.57,7.14]
[1742223585334,18.10983466,126.59,126.57,15.0406]
[1742223585513,18.10983466,126.59,126.57,7.14]
[1742223587206,18.10983466,126.6,126.57,15.0406]
[1742223588327,18.10983466,126.61,126.57,15.0406]
[1742223588529,7.8966,126.64,126.57,95.8406]
[1742223588828,18.10983466,126.61,126.57,95.8406]
[1742223590838,18.10983466,126.6,126.57,95.8406]
[1742223594132,18.10983466,126.59,126.57,87.94]
[1742223595026,18.10983466,126.59,126.57,95.8407]
[1742223595208,18.10983466,126.59,126.57,87.94]
[1742223595827,18.10983466,126.59,126.57,80.8]
[1742223596542,18.17283466,126.61,126.57,88.7005]
[1742223597726,18.10983466,126.6,126.57,88.7005]
[1742223597919,18.10983466,126.6,126.57,80.8]
[1742223598119,18.10983466,126.59,126.57,80.8]
[1742223598439,18.10983466,126.59,126.57,88.7007]
[1742223598826,18.10983466,126.59,126.57,80.8]
[1742223602433,18.10983466,126.62,126.61,87.9]
[1742223602821,18.10983466,126.64,126.61,87.9]
[1742223603022,18.17283466,126.65,126.61,95.7979]
[1742223603345,18.10983466,126.64,126.61,87.9]
[1742223603546,18.10983466,126.64,126.61,95.7982]
[1742223603842,18.17283466,126.65,126.61,95.7982]
[1742223604443,18.10983466,126.64,126.61,87.9]
[1742223605140,18.10983466,126.63,126.61,87.9]
[1742223605343,18.10983466,126.62,126.61,87.9]
[1742223605529,18.10983466,126.62,126.61,80.8]
[1742223606627,26.00743466,126.62,126.57,95.6595]
[1742223606847,18.10983466,126.59,126.57,94.0439]
[1742223607147,18.10983466,126.59,126.57,87.9]
[1742223607743,18.10983466,126.58,126.57,87.9]
[1742223608043,18.10983466,126.58,126.57,80.8]
[1742223608235,27.6417,126.62,126.57,80.8]
[1742223608433,27.6417,126.62,126.54,136.1643]
[1742223608434,18.10983466,126.58,126.54,80.8]
[1742223608639,18.10983466,126.55,126.54,80.8]
[1742223608840,7.8995,126.59,126.54,88.7025]
[1742223609043,18.10983466,126.58,126.54,88.7025]
[1742223610053,18.10983466,126.56,126.54,80.8]
[1742223610237,18.10983466,126.55,126.54,80.8]
[1742223610438,18.10983466,126.55,126.53,0.03]
[1742223611137,18.10983466,126.56,126.53,0.03]
[1742223611338,18.10983466,126.57,126.53,0.03]
[1742223611750,7.899,126.6,126.53,18.13983466]
[1742223611751,18.10983466,126.58,126.53,18.13983466]
[1742223611953,18.10983466,126.58,126.53,98.93983466]
[1742223612329,18.10983466,126.63,126.55,6.0505]
[1742223612535,18.10983466,126.62,126.57,18.10983466]
[1742223612857,18.10983466,126.63,126.58,7.9001]
[1742223613053,0.063,126.64,126.58,106.80993466]
[1742223613237,18.17283466,126.64,126.59,18.10983466]
[1742223613456,0.063,126.64,126.6,25.20983466]
[1742223613755,0.063,126.64,126.6,240.50983466]
[1742223614080,0.063,126.64,126.62,6.4734]
[1742223614364,18.17283466,126.64,126.62,80.8]
[1742223614736,0.063,126.64,126.62,88.6971]
[1742223615437,18.17283466,126.64,126.62,80.8]
[1742223615998,18.17283466,126.64,126.62,88.6976]
[1742223616649,18.10983466,126.63,126.62,88.6976]
[1742223617266,18.10983466,126.63,126.62,80.8]
[1742223617847,0.063,126.64,126.62,88.6976]
[1742223618045,0.063,126.64,126.63,7.12]
[1742223618237,0.063,126.64,126.63,106.02983466]
[1742223618761,0.063,126.64,126.63,95.817]
[1742223618973,0.02633049,126.64,126.63,95.817]
[1742223619974,0.02633049,126.64,126.63,87.92]
[1742223620441,0.02633049,126.64,126.63,95.817]
[1742223620637,0.02633049,126.64,126.63,87.92]
[1742223621059,18.13616515,126.64,126.63,87.92]
[1742223621258,18.13616515,126.64,126.63,80.8]
[1742223621559,18.13616515,126.64,126.61,0.03]
[1742223621755,18.10983466,126.62,126.61,0.03]
[1742223621957,18.10983466,126.62,126.56,80.8]
[1742223622161,18.10983466,126.57,126.56,80.8]
[1742223622752,18.10983466,126.57,126.54,7.9023]
[1742223622753,18.10983466,126.57,126.54,80.8]
[1742223622953,18.10983466,126.55,126.54,80.8]
[1742223623156,29.00307352,126.55,126.54,80.8]
[1742223623643,29.00307352,126.55,126.54,392.8]
[1742223624162,29.00307352,126.55,126.53,0.03]
[1742223624347,29.00307352,126.54,126.53,0.03]
[1742223624951,55.55532238,126.54,126.53,0.03]
[1742223625154,20.0,126.52,126.51,0.03]
[1742223625364,49.00307352,126.52,126.51,0.03]
[1742223625668,44.04457352,126.56,126.51,0.03]
[1742223625868,29.00307352,126.53,126.51,0.03]
[1742223626051,29.00307352,126.52,126.51,0.03]
[1742223630774,29.00307352,126.54,126.51,0.03]
[1742223630993,29.00307352,126.54,126.51,80.83]
[1742223631276,29.00307352,126.55,126.51,80.83]
[1742223632375,18.64964886,126.59,126.51,88.734]
[1742223632376,29.00307352,126.54,126.51,88.734]
[1742223632753,29.00307352,126.53,126.51,88.734]
[1742223632979,29.00307352,126.52,126.51,0.03]
[1742223633362,29.00307352,126.53,126.51,0.03]
[1742223634076,29.00307352,126.54,126.51,7.9345]
[1742223634283,29.00307352,126.53,126.51,7.9345]
[1742223634572,29.00307352,126.55,126.51,7.19]
[1742223635173,29.00307352,126.54,126.51,7.19]
[1742223635586,29.00307352,126.53,126.51,7.19]
[1742223635759,29.00307352,126.52,126.51,0.03]
[1742223635960,29.00307352,126.55,126.51,0.03]
[1742223636168,7.9003,126.58,126.51,0.03]
[1742223636169,29.00307352,126.52,126.51,0.03]
[1742223639463,29.00307352,126.54,126.51,0.03]
[1742223639782,29.00307352,126.54,126.51,80.83]
[1742223640188,29.00307352,126.55,126.51,80.83]
[1742223640573,7.18,126.57,126.52,7.9038]
[1742223640880,29.00307352,126.55,126.52,7.9038]
[1742223641076,6.25596157,126.6,126.52,88.7038]
[1742223641077,29.00307352,126.56,126.52,88.7038]
[1742223641386,29.00307352,126.57,126.52,137.46657352]
[1742223641572,27.45704886,126.61,126.53,29.00307352]
[1742223641573,29.00307352,126.58,126.53,29.00307352]
[1742223641773,29.00307352,126.58,126.53,109.80307352]
[1742223641971,29.00307352,126.57,126.53,80.8]
[1742223642172,29.00307352,126.58,126.53,109.80307352]
[1742223642565,0.063,126.54,126.53,117.70627352]
[1742223642960,9.5257,126.61,126.53,117.70627352]
[1742223642961,29.00307352,126.59,126.53,137.46437352]
[1742223643165,29.00307352,126.59,126.54,36.18307352]
[1742223643385,25.82964886,126.62,126.55,29.00307352]
[1742223643386,29.00307352,126.6,126.55,29.00307352]
[1742223643583,29.00307352,126.62,126.56,29.00307352]
[1742223643890,29.00307352,126.57,126.55,80.8]
[1742223644267,29.00307352,126.58,126.55,80.8]
[1742223644689,29.00307352,126.59,126.56,7.9013]
[1742223645569,7.18,126.63,126.56,88.7013]
[1742223645779,29.00307352,126.61,126.56,117.70437352]
[1742223646099,29.00307352,126.63,126.58,6.1762]
[1742223646392,29.00307352,126.63,126.58,13.3762]
[1742223646594,29.00307352,126.63,126.59,7.8995]
[1742223646789,0.02633049,126.64,126.59,80.8]
[1742223646790,29.00307352,126.62,126.59,80.8]
[1742223646989,29.00307352,126.6,126.59,80.8]
[1742223647294,20.0,126.56,126.52,80.8]
[1742223647497,29.00307352,126.53,126.51,0.03]
[1742223647691,29.00307352,126.52,126.51,0.03]
[1742223647869,29.00307352,126.53,126.51,0.03]
[1742223648291,29.00307352,126.55,126.51,0.03]
[1742223648494,29.00307352,126.55,126.51,80.83]
[1742223648703,29.00307352,126.55,126.51,88.7344]
[1742223648884,25.86964886,126.59,126.51,88.7344]
[1742223649086,29.00307352,126.54,126.51,80.83]
[1742223649283,29.00307352,126.53,126.51,80.83]
[1742223650976,29.00307352,126.54,126.51,80.83]
[1742223651684,29.00307352,126.52,126.51,80.83]
[1742223652274,29.00307352,126.53,126.51,80.83]
[1742223653991,29.00307352,126.53,126.51,0.03]
[1742223654204,29.00307352,126.52,126.51,0.03]
[1742223655691,36.90687352,126.52,126.51,0.03]
[1742223656090,29.00307352,126.52,126.51,0.03]
[1742223656999,36.90687352,126.52,126.51,0.03]
[1742223657187,29.00307352,126.52,126.51,0.03]
[1742223657581,36.90687352,126.52,126.51,0.03]
[1742223659175,29.00307352,126.52,126.51,0.03]
[1742223661092,36.90687352,126.52,126.51,0.03]
[1742223664181,29.00307352,126.52,126.51,0.03]
[1742223666091,0.063,126.54,126.51,0.03]
[1742223666304,29.00307352,126.53,126.51,0.03]
[1742223666495,29.00307352,126.52,126.51,0.03]
[1742223667407,36.90687352,126.52,126.51,0.03]
[1742223668805,29.00307352,126.52,126.51,0.03]
[1742223669200,18.14391678,126.52,126.51,0.03]
[1742223669591,0.063,126.54,126.51,0.03]
[1742223669790,18.14391678,126.52,126.51,0.03]
[1742223671211,29.03131403,126.52,126.51,0.03]
[1742223673215,36.93511403,126.52,126.51,0.03]
[1742223673417,29.03131403,126.52,126.51,0.03]
[1742223678693,29.03131403,126.52,126.51,80.83]
[1742223681394,0.063,126.54,126.51,88.7345]
[1742223681600,29.03131403,126.52,126.51,88.7345]
[1742223682713,29.03131403,126.53,126.51,88.7345]
[1742223683697,29.03131403,126.52,126.51,88.7345]
[1742223685005,29.03131403,126.52,126.51,80.83]
[1742223685411,29.03131403,126.52,126.51,0.03]
[1742223686205,36.93511403,126.52,126.51,0.03]
[1742223686419,29.03131403,126.52,126.51,0.03]
[1742223687705,36.93511403,126.52,126.51,0.03]
[1742223688624,65.96642806,126.52,126.48,0.03]
[1742223688828,58.06262806,126.49,126.48,0.03]